Cogmind - Beta 14 @@@ ROGUE MODE // 2024.10.21 @ 19:54:27 Player: Kate+Gabe4evr Result: Destroyed by 5C-DVM(R) with Subdweller Beam Cannon Performance ------------- Evolutions (0) 0 Regions Visited (2) 400 Robots Destroyed (28) 140 Value Destroyed (806) 806 Prototype IDs (0) 0 Alien Tech Used (0) 0 Bonus (0) 0 TOTAL SCORE: 1346 Bonus ------- None Cogmind --------- Core Integrity 0/250 Matter 280/300 Energy 97/100 System Corruption 0% Temperature Cool (9) Movement Walking (120) Location -10/Subcaves Parts ------- > --- POWER (1) -------- (None) > --- PROPULSION (2) --- Aluminum Leg Aluminum Leg > --- UTILITY (2) ------ Small Storage Unit Makeshift Light Armor Plating > --- WEAPON (2) ------- Subdweller Laser Battle Cannon > --- INVENTORY (8) ---- Aluminum Leg Aluminum Leg Improved Heat Sink Terrain Scanner Beam Cannon Light Assault Rifle Light Assault Rifle Peak State ------------ > --- POWER ------------ Light Nuclear Core > --- PROPULSION ------- Aluminum Leg Aluminum Leg > --- UTILITY ---------- Small Storage Unit Improved Terrain Scanner > --- WEAPON ----------- Light Assault Rifle Light Assault Rifle > --- INVENTORY -------- Aluminum Leg Aluminum Leg Aluminum Leg Aluminum Leg Aluminum Leg Improved Heat Sink Terrain Scanner Beam Cannon [Rating: 12] Favorites ----------- Power Ion Engine Engine Ion Engine Power Core Light Nuclear Core Propulsion Aluminum Leg Leg Aluminum Leg Utility Small Storage Unit Device Improved Terrain Scanner Storage Small Storage Unit Protection Makeshift Light Armor Plating Weapon Light Assault Rifle Energy Gun Subdweller Laser Energy Cannon Beam Cannon Ballistic Gun Light Assault Rifle Ballistic Cannon Battle Cannon Launcher Grenade Launcher Build | -11 -10 -10 ------- Run | Yrd Mat Sub Slots Evolved . | . . . Power . | . . . Propulsion . | . . . Utility . | . . . Weapon . | . . . Parts Attached 39 | 6 25 8 Power 4 | 1 3 . Engine 3 | 1 2 . Core 1 | . 1 . Reactor . | . . . Propulsion 15 | 2 11 2 Treads . | . . . Leg 15 | 2 11 2 Wheel . | . . . Hover . | . . . Flight . | . . . Utility 6 | 1 3 2 Device 3 | . 3 . Storage 1 | 1 . . Processor . | . . . Hackware . | . . . Protection 2 | . . 2 Artifact . | . . . Weapon 14 | 2 8 4 Energy Gun 1 | . . 1 Energy Cannon 1 | . 1 . Ballistic Gun 7 | 2 4 1 Ballistic Cannon 1 | . . 1 Launcher 4 | . 3 1 Special Weapon . | . . . Impact Weapon . | . . . Slashing Weapon . | . . . Piercing Weapon . | . . . Special Melee Weapon . | . . . Unidentified Prototypes . | . . . Parts Lost 9 | . 6 3 Power 2 | . 2 . Propulsion 3 | . 1 2 Utility 2 | . 2 . Weapon 2 | . 1 1 Highest Loss Streak 3 | . 3 1 To Critical Strikes . | . . . Average Slot Usage (%) 80 | . 92 68 Engine 3 | . 7 . Core 3 | . 6 . Leg 21 | . 27 15 Device 3 | . 7 . Storage 14 | . 14 14 Protection 5 | . . 11 Energy Gun 1 | . . 2 Energy Cannon 6 | . . 13 Ballistic Gun 14 | . 27 . Launcher 4 | . . 9 Peak Build Rating 12 | 6 12 11 Average Rating 8 | 4 8 8 On Entrance 4 | . 6 6 Naked Turns . | . . . Heaviest Build 16 | 12 15 16 Greatest Support 20 | 20 20 20 Greatest Overweight (x) 3 | . 3 1 Average Overweight (x) . | . . . Largest Inventory Capacity 8 | 8 8 8 Average Capacity 7 | 6 8 8 Most Carried 8 | 1 8 8 Average Carried 6 | . 5 7 Final Capacity 8 | 8 8 8 Final Carried 8 | 1 8 7 Class Distribution -------------------- 83% | Mutant 16% | Scavenger-Mutant Dominant Class ---------------- Mutant | -10/Materials Mutant | -10/Subcaves Resources | -11 -10 -10 ----------- Run | Yrd Mat Sub Matter Collected 844 | 240 377 227 Remotely . | . . . Salvage Created 841 | . 626 215 Parts 54 | . 44 10 Haulers Intercepted 2 | . 2 . Recyclers Shooed . | . . . Parts Field Recycled . | . . . Retrieved Matter . | . . . Parts Self-Destructed 5 | . . 5 Prevented . | . . . Kills | -11 -10 -10 ------- Run | Yrd Mat Sub Combat Hostiles Destroyed 20 | . 13 7 Guns 11 | . 11 . Cannons 4 | . . 4 AOE 4 | . 2 2 Classes Destroyed 6 | . 5 1 Worker 1 | . 1 . Builder 4 | . 4 . Tunneler 1 | . 1 . Hauler 2 | . 2 . Grunt 13 | . 13 . Subdweller 7 | . . 7 Best Kill Streak 10 | . 10 2 Combat Bots Only 5 | . 5 2 Max Kills in Single Turn 3 | . 3 1 Gunslinging . | . . . Exploded 2 | . 2 1 Melee . | . . . Uniques/NPCs Destroyed . | . . . Combat | -11 -10 -10 -------- Run | Yrd Mat Sub Hostile Shots Fired 125 | . 93 32 Missed 40 | . 28 12 Damage Taken 1403 | . 854 549 Core 257 | . 145 112 Absorbed by Shields . | . . . Core Remaining (%) 100 | 100 . . Volleys Fired 117 | . 84 33 Largest 2 | . 2 2 Hottest 120 | . 90 120 Shots Fired 213 | . 161 52 Gun 156 | . 147 9 Cannon 40 | . 7 33 Launcher 17 | . 7 10 Special . | . . . Kinetic 150 | . 147 3 Thermal 46 | . 7 39 Explosive 17 | . 7 10 Electromagnetic . | . . . Robot Hit Streak 9 | . 9 6 Robot Miss Streak 5 | . 5 3 Penetration Max . | . . . Secondary Targets 2 | . 2 . Max Gunslinging Chain 1 | . 1 . Shots Hit Robots 111 | . 90 21 Core Hits 57 | . 49 8 Critical Kills 1 | . . 1 Critical Parts Destroyed 1 | . 1 . Critical Strikes 2 | . 1 1 Meltdown 1 | . . 1 Destroy 1 | . 1 . Melee Attacks . | . . . Impact . | . . . Slashing . | . . . Piercing . | . . . Sneak Attacks . | . . . Combat Hostiles . | . . . Follow-up Attacks . | . . . Damage Inflicted 1767 | . 1244 523 Guns 772 | . 734 38 Cannons 176 | . . 176 Explosions 818 | . 509 309 Melee . | . . . Ramming 1 | . 1 . Kinetic 734 | . 734 . Thermal 214 | . . 214 Explosive 818 | . 509 309 Electromagnetic . | . . . Impact . | . . . Slashing . | . . . Piercing . | . . . Highest Corruption . | . . . Average Corruption . | . . . Corruption Purged . | . . . Corruption Blocked . | . . . Overload Shots . | . . . Overflow Damage 11 | . 4 7 Projectiles . | . . . Explosions 11 | . 4 7 Melee . | . . . Knockbacks . | . . . Impact . | . . . Kinetic . | . . . Secondary . | . . . Self-Inflicted Damage 89 | . 35 54 Shots 4 | . 2 2 Rammed . | . . . Targets Rammed 4 | . 4 . Kicked 4 | . 4 . Crushed . | . . . Highest Temperature 122 | . 122 2 Average Temperature 23 | . 23 2 Received Heat Transfer 612 | . 522 90 Siege Activations . | . . . Robots Corrupted . | . . . Combat Hostiles . | . . . Parts Fried . | . . . Impact Corruptions . | . . . Robots Melted 1 | . . 1 Combat Hostiles 1 | . . 1 Parts Melted 3 | . . 3 Heat Transferred 420 | . . 420 Parts Sabotaged . | . . . Parts Stolen . | . . . Parts Stripped . | . . . Power Chain Reactions . | . . . Alert | -11 -10 -10 ------- Run | Yrd Mat Sub Peak Influence 201 | . 201 . Initial . | . . . Average 69 | . 71 . Maximum Alert Level 1 | . 1 . Low Security (%) 87 | 100 86 . Level 1 12 | . 13 . Level 2 . | . . . Level 3 . | . . . Level 4 . | . . . Level 5 . | . . . High Security . | . . . Max Security . | . . . Squads Dispatched 4 | . 4 . Investigation 1 | . 1 . Extermination . | . . . Reinforcement 3 | . 3 . Assault . | . . . Garrison . | . . . Intercept . | . . . Searches Triggered . | . . . Construction Impeded . | . . . Haulers Reinforced . | . . . Active Scanning Responses . | . . . Cargo Convoy Interrupts . | . . . Stealth | -11 -10 -10 --------- Run | Yrd Mat Sub Distress Signals 5 | . 5 . Communications Jammed . | . . . Distress Signals . | . . . Times Spotted 43 | . 34 9 Peak Tracking Total 4 | . 4 2 Tactical Retreats 1 | . 1 . Traps | -11 -10 -10 ------- Run | Yrd Mat Sub Traps Triggered 3 | . 2 1 Indirectly . | . . . Trap Hack Attempts . | . . . Triggered . | . . . Disarmed . | . . . Reprogrammed . | . . . Reused . | . . . Traps Extracted . | . . . Installed . | . . . Triggered . | . . . Machines | -11 -10 -10 ---------- Run | Yrd Mat Sub Machines Disabled . | . . . Max in Single Turn . | . . . Machines Repaired . | . . . Machines Dismantled . | . . . Machines Sabotaged . | . . . Overloaded Fab Kills . | . . . Hacking | -11 -10 -10 --------- Run | Yrd Mat Sub Machines Accessed 5 | . 3 2 Terminals 3 | . 3 . Fabricators . | . . . Repair Stations . | . . . Recycling Units . | . . . Scanalyzers . | . . . Garrison Access . | . . . Total Hacks 11 | . 8 3 Successful 6 | . 3 3 Failed 5 | . 5 . Catastrophic 1 | . 1 . Database Lockouts . | . . . Manual 7 | . 7 . Terminals 8 | . 8 . Fabricators . | . . . Repair Stations . | . . . Recycling Units . | . . . Scanalyzers . | . . . Garrison Access . | . . . Terminal Hacks 4 | . 1 3 Record 2 | . 1 1 Open Door 1 | . . 1 Release Object 1 | . . 1 Fabricator Hacks . | . . . Repair Station Hacks . | . . . Recycling Unit Hacks . | . . . Scanalyzer . | . . . Garrison Access Hacks . | . . . Unauthorized Hacks 2 | . 2 . Terminals 2 | . 2 . Botnet 2 | . 2 . Fabricators . | . . . Repair Stations . | . . . Recycling Units . | . . . Scanalyzers . | . . . Garrison Access . | . . . Data Cores Recovered . | . . . Used . | . . . Hacking Detections 2 | . 2 . Full Trace Events 1 | . 1 . Feedback Events . | . . . Feedback Blocked . | . . . Robot Schematics Acquired . | . . . Robots Built . | . . . Authchips . | . . . Time . | . . . Total Robot Build Rating . | . . . Part Schematics Acquired . | . . . Parts Built . | . . . Authchips . | . . . Time . | . . . Total Part Build Rating . | . . . Parts Repaired . | . . . Time . | . . . Parts Recycled . | . . . Recycled Matter . | . . . Retrieved Matter . | . . . Retrieved Components . | . . . Parts Scanalyzed . | . . . Part Schematics Acquired . | . . . Parts Damaged . | . . . Bothacking | -11 -10 -10 ------------ Run | Yrd Mat Sub Used RIF Installer . | . . . Robots Hacked . | . . . Non-combat . | . . . Combat . | . . . Robot Hacks Applied . | . . . Relay Couplers Released . | . . . Fabnet Peak Effective % . | . . . Robots Rewired . | . . . Allies Hacked . | . . . Hacks Repelled . | . . . Allies | -11 -10 -10 -------- Run | Yrd Mat Sub Total Allies . | . . . Largest Group . | . . . Highest-Rated Group . | . . . Highest-Rated Ally . | . . . Total Orders . | . . . Ally Attacks . | . . . Total Damage . | . . . Kills . | . . . Allies Corrupted . | . . . Allies Melted . | . . . Intel | -11 -10 -10 ------- Run | Yrd Mat Sub Robot Analysis Total . | . . . Derelict Logs Recovered 2 | . . 2 Drone Launches . | . . . Drone Recoveries . | . . . Exploration | -11 -10 -10 ------------- Run | Yrd Mat Sub Turns Passed 3317 | 65 1641 1611 Spaces Moved 1690 | 49 808 833 Core 8 | 5 3 . Treads . | . . . Legs 1682 | 44 805 833 Wheels . | . . . Hover . | . . . Flight . | . . . Fastest Speed 50 | 50 120 120 Average Speed 149 | 112 120 179 Slowest Speed 200 | 120 200 190 Overloaded Moves . | . . . Propulsion Burnouts . | . . . Robots Hopped . | . . . Cave-ins Triggered . | . . . Exploration Rate (%) 48 | 4 89 53 Regions Visited 2 Branch Regions 1 Pre-discovered Areas 1 | . . 1 Known Exits Taken . | . . . Unknown Exits Taken 2 | 1 1 . Scrap Searched 5 | . . 5 Spaces Dug . | . . . Terrain Destroyed 81 | . 27 54 Melee . | . . . Projectile . | . . . AOE 81 | . 27 54 Terrain Rammed . | . . . Walls Destroyed . | . . . Machines Disabled . | . . . Actions | -11 -10 -10 --------- Run | Yrd Mat Sub Total 2290 | 55 1336 899 Wait 426 | . 405 21 Move 1688 | 48 807 833 Hop . | . . . Pick Up 7 | 1 6 . Fast Attach 18 | 6 9 3 Attach 5 | . 2 3 Detach 2 | . . 2 Swap 16 | . 14 2 Drop 6 | . 5 1 Fire 117 | . 84 33 Melee . | . . . Ram . | . . . Kick 4 | . 4 . Crush . | . . . Escape Stasis . | . . . Rewire . | . . . Trap . | . . . Miscellaneous 1 | . . 1 Route ------- -11/Scrapyard -10/Materials (discovered 6 exits: [*Mat x3] / [*Min x2] / *Sub) -10/Subcaves (discovered 2 exits: [*Mat x2]) History --------- Turn | Location | Event 11 | -11/Scrapyard | Discovered new exit (range 15) 66 | -11/Scrapyard | Entered Materials 214 | -10/Materials | Lost 3 parts (1p1n1u) 314 | -10/Materials | Build established: Mutant 691 | -10/Materials | Discovered new exit (range 11) 709 | -10/Materials | Discovered new exit (range 11) 929 | -10/Materials | Core integrity fell below 50% 969 | -10/Materials | Discovered new exit (range 11) 1021 | -10/Materials | Discovered new exit (range 15) 1246 | -10/Materials | Build established: Scavenger-Mutant 1275 | -10/Materials | Discovered new exit (range 14) 1335 | -10/Materials | Discovered new exit (range 8) 1707 | -10/Materials | Entered Subcaves 1730 | -10/Subcaves | Ambushed by Subdwellers from Twisted Machinery 1761 | -10/Subcaves | Discovered new exit (range 15) 1772 | -10/Subcaves | Core integrity fell below 20% 1780 | -10/Subcaves | Build established: Mutant 2208 | -10/Subcaves | Released subatomizers from SUBCON Basin 2454 | -10/Subcaves | Discovered new exit (range 9) 2774 | -10/Subcaves | Shifting Twisted Machinery released Sub. Monowheel 2818 | -10/Subcaves | Shifting Twisted Machinery released Sub. Laser 2958 | -10/Subcaves | Ambushed by Subdwellers from Twisted Machinery 3318 | -10/Subcaves | Destroyed by 5C-DVM(R) with Subdweller Beam Cannon Last Messages --------------- 03057_ Dropped Mak. Light Armor Plating. 03062_ Subatomizers dissect the Mak. Light Armor Plating. 03077_ Acquired derelict log, extracted data. World map updated: -10/Materials. 03125_ Subatomizers dissect the Wheel. 03127_ T8-O31(R): "SUBMAD!" 03138_ Subatomizers dissect the Wheel. 03144_ T8-O31(R) destroyed. 03149_ Acquired 14 matter. 03153_ Subatomizers dissect the Wheel. 03172_ NF-Q5O(R): "OHNO!" 03174_ Aluminum Leg destroyed. 03178_ NF-Q5O(R) destroyed. 03188_ Acquired 20 matter. 03196_ KH-YXL(u) deconstructs Twisted Machinery. 03207_ Acquired derelict log, extracted data. Data stored: Storage entrances (x1). 03273_ Acquired Battle Cannon. 03297_ Subatomizers dissect the Wheel. 03315_ Sub. Laser shoots sparks and powers down. Map ----- +----------------------------------------------------+ | ??????????????????# ?## ###### #### #### | | ?????????????????## ## ####### #?#" #??# | | ?????????????????# # ##?# #?##"" #??? | | ????????????????## & #?# #??#"" #??? | | ???????????????## #?# ##??# ""#??? | | ???????????????# ####?######???? "#??? | | ???????????# ##??????????????? ???? | | ???????????# ##### ##????????????????????? | | ???????????# ????## ##???????????????????? | | ???????????# ## ??????# ##??????????????????? | | ???????????##??## ???????# = ##?????????????????? | | ????????????????#????????### #?????????????????? | | ???????????????????????????# #?????????????????? | | ????????????????????######## #?????????????????? | | ????????????????????# # ##?????????????????? | | ????????????????????# #??????????????????? | | ????????????????????# ##??????????????????? | | ????????????????????# #???????????????????? | | ????????????????????# ##??????????????????? | | ????????????????????#### #??????????????????? | | ???????????????????????## #??????????????????? | | ????????????????????????# ##??????????????????? | | ????????????????????????# ##???????????????????? | | ?????????????????????##### ##????????????????????? | | ?????????????????????# ##????????????????????? | | ?????????????????????# @ #????????????????????? | | ?????????????????????## #????????????????????? | | ??????????????????????#R #????????????????????? | | ???????????????????? #????????????????????? | | ?????????????????#"& ##< ##????????????????????? | | ?????????????????###??# #?????????????????????? | | ??????????????????????## ##?????????????????????? | | ???????????????????????# ??????????????????????? | | ???????????????????????# #??????????????????????? | | ???????????????????????# ???????????????????????? | | ??????????????????????? ???????????????????????? | | ??????????????????????? ???????????????????????? | | ???????????????????????# ???????????????????????? | | ???????????????????????# ???????????????????????? | | ???????????????????????# ???????????????????????? | | ??????????????????????? ???????????????????????? | | ???????????????????????? ????????????????????????? | | ?????????????????????????????????????????????????? | | ?????????????????????????????????????????????????? | | ?????????????????????????????????????????????????? | | ?????????????????????????????????????????????????? | | ?????????????????????????????????????????????????? | | ?????????????????????????????????????????????????? | | ?????????????????????????????????????????????????? | | ?????????????????????????????????????????????????? | +----------------------------------------------------+ Best States ------------- Heat Dissipation 25 Energy Generation 14 Energy Capacity 250 Matter Stores 300 Matter Capacity 300 Sight Range 16 Terrain Scan Range 16 Terrain Scan Density 10 Armor Coverage 100 Evasion (%) 55 Item Schematics ----------------- None Robot Schematics ------------------ None Fabricated ------------ Nothing Alien Tech Used ----------------- None Achievements -------------- None Challenges ------------ None Game ------ Seed ReactionSuperquantumKatana Manual? 0 Play Time 00:14:22 Cumulative 40.2 hours Start 2024.10.21 @ 19:40:12 End 2024.10.21 @ 19:54:27 Sessions 1 Manual Loads 0 Difficulty Rogue Special Mode None Game No. 70 Rogue 70 Adventurer 0 Explorer 0 Win Type - Total 1 Types 1/0/0/0/0/0/0/0/0 Lore% 23 Gallery% 43 Achievement% 38 Wizard Run 0 Options --------- Layout 0 ASCII 0 Keyboard 1 Movement Numpad Keybinds 0 Fullscreen 2 Font 24/Terminus Map View 76x50 Zoom Use 0% Tactical HUD 1 Map Filters NONE Filters NONE Steam 1 RUN: dcd2d746-98d6-4ea1-acdb-e4660858a377